bitfinex/quotes_BTCUSD_20230904
["timestamp","ask_amount","ask_price","bid_price","bid_amount"]
[1693812461455,0.95818762,25988.0,25987.0,0.12472253]
[1693812463744,0.72734919,25988.0,25987.0,0.12472253]
[1693812464418,0.9582046,25988.0,25987.0,0.12472253]
[1693812464842,0.72734919,25988.0,25987.0,0.12472253]
[1693812465196,0.95820953,25988.0,25987.0,0.12472253]
[1693812465498,0.72734919,25988.0,25987.0,0.12472253]
[1693812465793,0.95821471,25988.0,25987.0,0.12472253]
[1693812466215,0.72734919,25988.0,25987.0,0.12472253]
[1693812467248,0.95821537,25988.0,25987.0,0.12472253]
[1693812467677,0.72734919,25988.0,25987.0,0.12472253]
[1693812467881,0.72734919,25988.0,25987.0,0.07570641]
[1693812468057,0.95821528,25988.0,25987.0,0.07570641]
[1693812468239,0.72734919,25988.0,25987.0,0.07570641]
[1693812469384,0.97451793,25988.0,25987.0,0.07570641]
[1693812469590,0.81828968,25988.0,25987.0,0.07570641]
[1693812469951,0.81828968,25988.0,25987.0,0.12472253]
[1693812471414,0.90108968,25988.0,25987.0,0.12472253]
[1693812471853,0.65392094,25988.0,25987.0,0.12472253]
[1693812472035,0.92312287,25988.0,25987.0,0.07570641]
[1693812474550,0.92312287,25988.0,25987.0,0.12472253]
[1693812476154,0.92312287,25988.0,25987.0,0.12442253]
[1693812477383,0.65392094,25988.0,25987.0,0.12442253]
[1693812477614,0.67392094,25988.0,25987.0,0.12442253]
[1693812479497,0.67392094,25988.0,25987.0,0.07540641]
[1693812480057,0.91599695,25988.0,25987.0,0.07540641]
[1693812480267,0.67392094,25988.0,25987.0,0.07540641]
[1693812480653,0.90007585,25988.0,25987.0,0.07540641]
[1693812481309,0.93419535,25988.0,25987.0,0.07540641]
[1693812481619,0.67392094,25988.0,25987.0,0.07540641]
[1693812482176,0.96716195,25988.0,25987.0,0.07540641]
[1693812482431,0.67392094,25988.0,25987.0,0.07540641]
[1693812482639,0.9636252,25988.0,25987.0,0.07540641]
[1693812482841,0.67392094,25988.0,25987.0,0.07540641]
[1693812483180,0.94955535,25988.0,25987.0,0.07540641]
[1693812488608,0.67392094,25988.0,25987.0,0.07540641]
[1693812490412,0.97036709,25988.0,25987.0,0.07540641]
[1693812490623,1.20129489,25988.0,25987.0,0.07540641]
[1693812501832,1.20129489,25988.0,25987.0,0.12902102]
[1693812504719,1.38596207,25988.0,25987.0,0.12902102]
[1693812505275,1.38596207,25988.0,25987.0,0.07540641]
[1693812516844,1.20129489,25988.0,25987.0,0.07540641]
[1693812519273,1.20129489,25988.0,25987.0,0.07597979]
[1693812520019,1.20129489,25988.0,25987.0,0.07540641]
[1693812520298,0.90484874,25988.0,25987.0,0.07540641]
[1693812520886,1.17658385,25988.0,25987.0,0.07540641]
[1693812521519,1.17658385,25988.0,25987.0,0.12895419]
[1693812521742,1.17658385,25988.0,25987.0,0.07540641]
[1693812522141,0.90484874,25988.0,25987.0,0.07582183]
[1693812522553,1.17253906,25988.0,25987.0,0.12936961]
[1693812523345,0.90484874,25988.0,25987.0,0.12936961]
[1693812523564,1.12359313,25988.0,25987.0,0.12936961]
[1693812524948,0.04,25987.0,25981.0,0.61488169]
[1693812525149,0.0828,25982.0,25981.0,0.34621208]
[1693812525991,0.0828,25982.0,25981.0,0.25388267]
[1693812526177,0.0828,25982.0,25981.0,0.27788267]
[1693812526350,0.0828,25982.0,25981.0,0.37021208]
[1693812526557,0.0848,25982.0,25981.0,0.37021208]
[1693812526767,0.0848,25982.0,25981.0,0.27788267]
[1693812526967,0.0868,25982.0,25981.0,0.39421208]
[1693812527325,0.0868,25982.0,25981.0,0.30188267]
[1693812527558,0.0868,25982.0,25981.0,0.39421208]
[1693812529178,0.0868,25982.0,25981.0,0.39498211]
[1693812531821,0.004,25982.0,25981.0,0.39498211]
[1693812532576,0.004,25982.0,25981.0,0.44691227]
[1693812540141,0.004,25982.0,25981.0,0.36691227]
[1693812548466,0.004,25982.0,25981.0,0.27458286]
[1693812548662,0.004,25982.0,25981.0,0.36691227]
[1693812549049,0.004,25982.0,25981.0,0.27458286]
[1693812549207,0.004,25982.0,25981.0,0.27496787]
[1693812550202,0.004,25982.0,25981.0,0.2745833]
[1693812552459,0.004,25982.0,25981.0,0.36691271]
[1693812561038,0.004,25982.0,25981.0,0.34697504]
[1693812587075,0.004,25982.0,25981.0,0.34703451]
[1693812603100,0.003939,25982.0,25981.0,0.34703451]
[1693812607996,0.003939,25982.0,25981.0,0.34703671]
[1693812655476,0.003939,25982.0,25981.0,0.37799967]
[1693812659915,0.003939,25982.0,25981.0,0.38184767]
[1693812662824,0.003939,25982.0,25981.0,0.35088471]
[1693812667259,0.003939,25982.0,25981.0,0.48947133]
[1693812674802,0.25194855,25982.0,25981.0,0.48947133]
[1693812675212,0.25168055,25982.0,25981.0,0.48947133]
[1693812677833,0.25168055,25982.0,25981.0,0.35088471]
[1693812678432,0.25168055,25982.0,25981.0,0.25849363]
[1693812678638,0.25168055,25982.0,25981.0,0.10454863]
[1693812679224,0.25168055,25982.0,25981.0,0.00832447]
[1693812679680,0.25168055,25982.0,25981.0,0.05056673]
[1693812688818,0.25168055,25982.0,25981.0,0.04671873]
[1693812712266,0.003671,25982.0,25981.0,0.04671873]
[1693812740627,0.22793728,25982.0,25981.0,0.04671873]
[1693812759495,0.22793728,25982.0,25981.0,0.13908798]
[1693812764250,0.003671,25982.0,25981.0,0.13908798]
[1693812778696,0.29217541,25982.0,25981.0,0.13908798]
[1693812782516,0.29217541,25982.0,25981.0,0.13831751]
[1693812783460,0.29217541,25982.0,25981.0,0.13908778]
[1693812785498,0.29217541,25982.0,25981.0,0.04671853]
[1693812786359,0.29217541,25982.0,25981.0,0.05433451]
[1693812788527,0.28196089,25982.0,25981.0,0.05433451]
[1693812810982,0.27132758,25982.0,25981.0,0.05433451]
[1693812813086,0.35412758,25982.0,25981.0,0.05433451]
[1693812813487,0.35412758,25982.0,25981.0,0.05787484]
[1693812817513,0.35412758,25982.0,25981.0,0.05799049]
[1693812821906,0.0828,25982.0,25981.0,0.05799049]
[1693812826503,0.0828,25983.0,25981.0,0.05799049]
[1693812827021,0.2454,25983.0,25981.0,0.05799049]
[1693812827770,0.2484,25983.0,25981.0,0.06599049]
[1693812828186,0.2504,25983.0,25981.0,0.08799049]
[1693812832517,0.2504,25983.0,25981.0,0.08428449]
[1693812832939,0.1676,25983.0,25981.0,0.08428449]
[1693812836916,0.27658743,25982.0,25981.0,0.08428449]
[1693812837915,0.27658743,25982.0,25981.0,0.06228449]
[1693812838122,0.27858743,25982.0,25981.0,0.07628449]
[1693812838389,0.28158743,25982.0,25981.0,0.08428449]
[1693812848740,0.31194377,25982.0,25981.0,0.08428449]
[1693812854613,0.31194377,25982.0,25981.0,0.07666851]
[1693812858537,0.30432779,25982.0,25981.0,0.07666851]
[1693812859596,0.30432779,25982.0,25981.0,0.03442625]
[1693812859738,0.30432779,25982.0,25981.0,0.07831157]
[1693812861368,0.30432779,25982.0,25981.0,0.17068082]
[1693812862075,0.27397145,25982.0,25981.0,0.17068082]
[1693812864558,0.27397145,25982.0,25981.0,0.17087285]
[1693812878095,0.27397145,25982.0,25981.0,0.0785036]
[1693812879391,0.005,25982.0,25981.0,0.0785036]
[1693812887665,0.03589232,25982.0,25981.0,0.0785036]
[1693812896384,0.005,25982.0,25981.0,0.0785036]
[1693812932505,0.005,25982.0,25981.0,0.10947617]
[1693812949785,0.2329655,25982.0,25981.0,0.10947617]
[1693812950568,0.2329655,25982.0,25981.0,0.10900171]
[1693812977342,0.005,25982.0,25981.0,0.10900171]
[1693812981281,0.005,25982.0,25981.0,0.20135594]
[1693812982219,0.005,25982.0,25981.0,0.10900171]
[1693812987690,0.005,25982.0,25981.0,0.10891431]
[1693812988093,0.005,25982.0,25981.0,0.20126854]
[1693813010673,0.27705166,25982.0,25981.0,0.20126854]
[1693813011285,0.27705166,25982.0,25981.0,0.10891431]
[1693813014080,0.005,25982.0,25981.0,0.10891431]
[1693813014281,0.005,25982.0,25981.0,0.08075088]
[1693813023110,0.005,25982.0,25981.0,0.17310511]
[1693813029387,0.005,25982.0,25981.0,0.08075088]
[1693813039953,0.005,25982.0,25981.0,0.03686556]
[1693813040156,0.005,25982.0,25981.0,0.08080224]
[1693813052273,0.005,25982.0,25981.0,0.17315647]
[1693813052582,0.005,25982.0,25981.0,0.08080224]
[1693813052786,0.005,25982.0,25981.0,0.17315647]
[1693813072684,0.005,25982.0,25981.0,0.08080224]
[1693813078360,0.005,25982.0,25981.0,0.17315647]
[1693813078559,0.005,25982.0,25981.0,0.08080224]
[1693813079557,0.005,25982.0,25981.0,0.17315647]
[1693813079854,0.005,25982.0,25981.0,0.08080224]
[1693813081155,0.005,25982.0,25981.0,0.17315647]
[1693813085109,0.005,25982.0,25981.0,0.08080224]
[1693813085305,0.005,25982.0,25981.0,0.17315647]
[1693813086259,0.005,25982.0,25981.0,0.08080224]
[1693813086465,0.005,25982.0,25981.0,0.17315647]
[1693813086668,0.25532941,25982.0,25981.0,0.17315647]
[1693813090846,0.25532941,25982.0,25981.0,0.08080224]
[1693813093747,0.005,25982.0,25981.0,0.08080224]
[1693813094367,0.005,25982.0,25981.0,0.17315647]
[1693813114431,0.005,25982.0,25981.0,0.08080224]
[1693813129269,0.005,25982.0,25981.0,0.07968385]
[1693813130368,0.005,25982.0,25981.0,0.07855096]
[1693813131351,0.005,25982.0,25981.0,0.07509469]
[1693813133386,0.005,25982.0,25981.0,0.07282372]
[1693813194250,0.005,25982.0,25981.0,0.06971876]
[1693813202150,0.26590604,25982.0,25981.0,0.06971876]
[1693813212395,0.26590604,25982.0,25981.0,0.06908989]
[1693813220058,0.26590604,25982.0,25981.0,0.02515321]
[1693813220513,0.26590604,25982.0,25981.0,0.07947615]
[1693813231794,0.26590604,25982.0,25981.0,0.08024718]
[1693813232550,0.26590604,25982.0,25981.0,0.07988804]
[1693813233280,0.26590604,25982.0,25981.0,0.0948617]
[1693813243122,0.34870604,25982.0,25981.0,0.0948617]
[1693813244850,0.34870604,25982.0,25981.0,0.0910113]
[1693813250148,0.20981468,25987.0,25986.0,0.15993767]
[1693813250149,0.23100514,25987.0,25986.0,0.15993767]
[1693813250299,0.19235,25994.0,25993.0,0.09993767]
[1693813250300,0.2771479,25994.0,25993.0,0.09993767]
[1693813250509,0.0192003,26001.0,25993.0,0.09993767]
[1693813250510,0.0192003,26001.0,26000.0,0.09993767]
[1693813250710,0.20394817,26001.0,26000.0,0.25477238]
[1693813250916,0.17815275,26001.0,26000.0,0.73477238]
[1693813251122,0.17815275,26001.0,26000.0,0.81577238]
[1693813251123,0.0192003,26001.0,26000.0,0.81577238]
[1693813251352,0.0192003,26001.0,26000.0,1.27032023]
[1693813251677,0.0192003,26001.0,26000.0,2.22376867]
[1693813251881,0.0192003,26001.0,26000.0,2.79238849]
[1693813252293,0.0192003,26001.0,26000.0,2.42969724]
[1693813252499,0.0192003,26001.0,26000.0,2.01489642]
[1693813252707,0.0192003,26001.0,26000.0,1.93274257]
[1693813252913,0.0202003,26001.0,26000.0,1.93274257]
[1693813253121,0.0198,26002.0,26001.0,0.04040059]
[1693813253324,0.0198,26002.0,26001.0,1.54420128]
[1693813253746,0.0198,26002.0,26001.0,1.68198619]
[1693813254162,0.0198,26004.0,26001.0,1.68198619]
[1693813254163,0.0198,26004.0,26001.0,1.94861097]
[1693813254364,0.0198,26004.0,26002.0,0.09163574]
[1693813254761,0.0198,26004.0,26003.0,0.00378382]
[1693813255295,0.0198,26004.0,26002.0,0.13778491]
[1693813255506,0.0198,26004.0,26002.0,0.13764253]
[1693813256225,0.0238,26004.0,26002.0,0.13764253]
[1693813256451,0.0258,26004.0,26002.0,0.13764253]
[1693813256647,0.0258,26004.0,26002.0,0.04149608]
[1693813257034,0.0258,26004.0,26002.0,0.225852]
[1693813258046,0.0258,26004.0,26002.0,0.12970555]
[1693813258246,0.0258,26004.0,26001.0,0.3]
[1693813259241,0.0238,26004.0,26001.0,0.3]
[1693813259465,0.0208,26004.0,26001.0,0.307]
[1693813259669,0.0218,26004.0,26001.0,0.312]
[1693813260222,0.0218,26004.0,26003.0,0.02]
[1693813261202,0.0208,26004.0,26003.0,0.02]
[1693813261402,0.0328,26004.0,26003.0,0.021]
[1693813262151,0.0438,26004.0,26003.0,0.022]
[1693813262590,0.0438,26004.0,26003.0,0.021]
[1693813262591,0.0328,26004.0,26003.0,0.021]
[1693813262789,0.0328,26004.0,26003.0,0.02]
[1693813262790,0.0198,26004.0,26003.0,0.02]
[1693813263121,0.0238,26004.0,26003.0,0.066]
[1693813263317,0.0238,26004.0,26003.0,0.13804165]
[1693813264293,0.0238,26004.0,26003.0,0.09204165]
[1693813264294,0.0198,26004.0,26003.0,0.09204165]
[1693813264496,0.0198,26004.0,26003.0,0.11504165]
[1693813264696,0.0238,26004.0,26003.0,0.13804165]
[1693813271578,0.7053511,26004.0,26003.0,0.11804165]
[1693813271790,0.49368678,26004.0,26003.0,0.11804165]
[1693813272213,0.76870199,26004.0,26003.0,0.11804165]
[1693813272847,0.76870199,26004.0,26003.0,0.046]
[1693813273060,0.76670199,26004.0,26003.0,0.023]
[1693813273672,0.76470199,26004.0,26002.0,0.02]
[1693813273884,0.46988678,26003.0,26002.0,0.02]
[1693813275034,0.47088678,26003.0,26002.0,0.034]
[1693813275191,0.47188678,26003.0,26002.0,0.049]
[1693813276405,0.7641831,26003.0,26002.0,0.049]
[1693813278051,0.7641831,26003.0,26002.0,0.11512559]
[1693813284274,0.27935741,26003.0,26002.0,0.11512559]
[1693813286892,0.36215741,26003.0,26002.0,0.11512559]
[1693813287667,0.36215741,26003.0,26002.0,0.09512559]
[1693813287861,0.36215741,26003.0,26002.0,0.11512559]
[1693813290102,0.51455741,26003.0,26002.0,0.11512559]
[1693813290467,0.51455741,26003.0,26002.0,0.10646373]
[1693813292209,0.51455741,26003.0,26002.0,0.17754929]
[1693813292535,0.51455741,26003.0,26002.0,0.19754929]
[1693813293150,0.51455741,26003.0,26002.0,0.24309208]
[1693813293301,0.51455741,26003.0,26002.0,0.69761344]
[1693813294131,0.51455741,26003.0,26002.0,0.78869901]
[1693813294457,0.51455741,26003.0,26002.0,0.78772671]
[1693813294659,0.51455741,26003.0,26002.0,0.76772671]
[1693813295079,0.51455741,26003.0,26002.0,0.78772671]
[1693813295305,0.51455741,26003.0,26002.0,0.56001279]
[1693813295506,0.51455741,26003.0,26002.0,0.55480826]
[1693813296121,0.51455741,26003.0,26002.0,0.95828886]
[1693813296723,0.90164419,26003.0,26002.0,0.95687388]
[1693813297634,0.90164419,26003.0,26002.0,0.95566617]
[1693813302698,0.90164419,26003.0,26002.0,0.95035675]
[1693813303915,0.90164419,26003.0,26002.0,0.93035675]
[1693813304659,0.90164419,26003.0,26002.0,0.95035675]
[1693813305191,0.90164419,26003.0,26002.0,0.54687615]
[1693813305672,0.90164419,26003.0,26002.0,0.52687615]
[1693813306301,0.90486678,26003.0,25999.0,0.27618654]
[1693813306553,0.90486678,26003.0,25998.0,0.00098604]
[1693813306554,0.04,25999.0,25998.0,0.27717258]
[1693813306791,0.78240847,25999.0,25998.0,0.23026399]
[1693813307050,0.94350847,25999.0,25998.0,0.23026399]
[1693813307293,0.64818678,25999.0,25998.0,0.32238577]
[1693813307532,0.897518,25999.0,25998.0,0.32238577]
[1693813307746,0.1,25998.0,25996.0,0.09211016]
[1693813307975,0.0828,25997.0,25996.0,0.09211016]
[1693813308219,0.46988678,25997.0,25994.0,0.23027656]
[1693813308422,0.0828,25995.0,25994.0,0.23027656]
[1693813309172,0.0828,25995.0,25993.0,0.11211016]
[1693813309379,0.80848678,25997.0,25993.0,0.11211016]
[1693813309380,0.0828,25994.0,25993.0,0.11211016]
[1693813309582,0.3308236,25994.0,25993.0,0.01594892]
[1693813310182,0.3308236,25994.0,25991.0,0.2920514]
[1693813310361,0.0828,25992.0,25991.0,0.2920514]
[1693813310611,0.0828,25992.0,25991.0,0.1381664]
[1693813310791,0.0828,25992.0,25990.0,0.18421937]
[1693813310792,0.0828,25992.0,25990.0,0.46347777]
[1693813310993,0.0828,25991.0,25990.0,0.46347777]
[1693813311195,0.0828,25991.0,25990.0,0.2792584]
[1693813312015,0.0828,25991.0,25990.0,0.2972584]
[1693813312427,0.0828,25991.0,25990.0,0.2792584]
[1693813312720,0.0848,25991.0,25990.0,0.2972584]
[1693813313127,0.0868,25991.0,25990.0,0.3212584]
[1693813313828,0.0868,25991.0,25990.0,0.50547777]
[1693813314998,0.090648,25991.0,25990.0,0.50547777]
[1693813316689,0.007848,25991.0,25990.0,0.50547777]
[1693813317591,0.007848,25991.0,25990.0,0.41861602]
[1693813317802,0.007848,25991.0,25990.0,0.64888001]
[1693813321463,0.007848,25991.0,25990.0,1.06497621]
[1693813322443,0.004,25991.0,25990.0,1.06497621]
[1693813323389,0.004,25991.0,25990.0,1.1178853]
[1693813329148,0.004,25991.0,25990.0,0.88762131]
[1693813329348,0.004,25991.0,25990.0,1.1178853]
[1693813329759,0.004,25991.0,25990.0,0.88762131]
[1693813330160,0.004,25991.0,25990.0,0.84126249]
[1693813330465,0.004,25991.0,25990.0,1.03126249]
[1693813339204,0.004,25991.0,25990.0,1.21548186]
[1693813342123,0.004,25991.0,25990.0,1.07762131]
[1693813346083,0.004,25991.0,25990.0,1.3078853]
[1693813348246,0.004,25991.0,25990.0,1.12366593]
[1693813350118,0.004,25991.0,25990.0,0.89340194]
[1693813351138,0.004,25991.0,25990.0,1.12357671]
[1693813351296,0.004,25991.0,25990.0,0.89340194]
[1693813376035,0.31501439,25991.0,25990.0,0.96998713]
[1693813376454,0.31501439,25991.0,25990.0,1.15436866]
[1693813376678,0.31501439,25991.0,25990.0,0.92389147]
[1693813377135,0.31301439,25991.0,25990.0,0.90589147]
[1693813377341,0.31501439,25991.0,25990.0,0.92189147]
[1693813377492,0.31301439,25991.0,25990.0,0.90589147]
[1693813377694,0.31101439,25991.0,25990.0,0.88189147]
[1693813377894,0.31501439,25991.0,25990.0,0.92189147]
[1693813378297,0.31301439,25991.0,25990.0,1.03616962]
[1693813378697,0.31501439,25991.0,25990.0,1.06016962]
[1693813379222,0.31101439,25991.0,25990.0,1.02016962]
[1693813379479,0.31301439,25991.0,25990.0,1.04216962]
[1693813380367,0.31501439,25991.0,25990.0,1.05616962]
[1693813381555,0.31501439,25991.0,25990.0,0.87178809]
[1693813381757,0.31501439,25991.0,25990.0,1.05616962]
[1693813382404,0.31501439,25991.0,25990.0,0.87178809]
[1693813382960,0.23221439,25991.0,25990.0,0.87178809]
[1693813383710,0.23606239,25991.0,25990.0,0.87178809]
[1693813383890,0.38986239,25991.0,25990.0,0.87178809]
[1693813387479,0.38986239,25991.0,25990.0,0.96393462]
[1693813388674,0.38986239,25991.0,25990.0,0.50933377]
[1693813393721,0.38986239,25991.0,25990.0,0.37105562]
[1693813393984,0.38986239,25991.0,25990.0,0.50933377]
[1693813395048,0.38986239,25991.0,25990.0,0.37105562]
[1693813395425,0.38986239,25991.0,25990.0,0.50933377]
[1693813395630,0.38986239,25991.0,25990.0,0.37105562]
[1693813395901,0.38986239,25991.0,25990.0,0.50933377]
[1693813396255,0.38986239,25991.0,25990.0,0.37105562]
[1693813400439,0.38986239,25991.0,25990.0,0.39105562]
[1693813403020,0.47266239,25991.0,25990.0,0.39105562]
[1693813404246,0.46866239,25991.0,25990.0,0.35505562]
[1693813404576,0.47266239,25991.0,25990.0,0.39105562]
[1693813404721,0.47266239,25991.0,25990.0,0.37805562]
[1693813404938,0.47066239,25991.0,25990.0,0.37805562]
[1693813405780,0.46866239,25991.0,25990.0,0.35505562]
[1693813405917,0.46866239,25991.0,25990.0,0.36005562]
[1693813406137,0.62953478,25991.0,25990.0,0.34505562]
[1693813406371,0.74953478,25991.0,25990.0,0.25290909]
[1693813406571,1.00021573,25991.0,25990.0,0.25290909]
[1693813406985,0.74953478,25991.0,25990.0,0.25290909]
[1693813407185,1.03987229,25991.0,25990.0,0.24790909]
[1693813407392,1.03987229,25991.0,25990.0,0.24290909]
[1693813407393,1.03887229,25991.0,25990.0,0.24290909]
[1693813407619,0.74753478,25991.0,25990.0,0.24290909]
[1693813407826,0.77253478,25991.0,25990.0,0.24890909]
[1693813408887,0.77253478,25991.0,25990.0,0.196]
[1693813409087,0.77153478,25991.0,25990.0,0.191]
[1693813409605,0.79553478,25991.0,25990.0,0.193]
[1693813414504,1.05222514,25991.0,25990.0,0.193]
[1693813422663,0.79553478,25991.0,25990.0,0.193]
[1693813422902,1.01741476,25991.0,25990.0,0.193]
[1693813434017,1.01741476,25991.0,25990.0,0.09680916]
[1693813435325,1.01741476,25991.0,25990.0,0.00061832]
[1693813435532,0.79553478,25991.0,25990.0,0.00061832]
[1693813436790,0.83553478,25991.0,25984.0,0.03744565]
[1693813436973,0.0828,25987.0,25984.0,0.03843614]
[1693813437144,0.29585223,25986.0,25984.0,0.03843614]
[1693813437370,0.29585223,25986.0,25985.0,0.04706218]
[1693813438204,0.29585223,25986.0,25984.0,0.0082988]
[1693813438401,0.29585223,25986.0,25985.0,0.04314033]
[1693813438605,0.29585223,25986.0,25984.0,0.00112626]
[1693813438926,0.29685223,25986.0,25985.0,0.009]
[1693813439564,0.29885223,25986.0,25985.0,0.011]
[1693813440162,0.29785223,25986.0,25985.0,0.011]
[1693813440562,0.29985223,25986.0,25985.0,0.011]
[1693813441480,0.29885223,25986.0,25985.0,0.012]
[1693813445709,0.29885223,25986.0,25985.0,0.05513658]
[1693813448215,0.29885223,25986.0,25985.0,0.14727655]
[1693813450686,0.29885223,25986.0,25985.0,0.28548633]
[1693813451528,0.29885223,25986.0,25985.0,0.14727655]
[1693813451744,0.30270023,25986.0,25985.0,0.14727655]
[1693813451946,0.30270023,25986.0,25985.0,0.19351386]
[1693813452151,0.30270023,25986.0,25985.0,0.64828078]
[1693813459226,0.30270023,25986.0,25985.0,0.74052636]
[1693813461474,0.30270023,25986.0,25985.0,0.28575944]
[1693813462440,0.46730023,25986.0,25985.0,0.28575944]
[1693813463279,0.46730023,25986.0,25985.0,0.14738216]
[1693813473479,0.55010023,25986.0,25985.0,0.14738216]
[1693813475308,0.55010023,25986.0,25985.0,0.14737845]
[1693813492008,0.55010023,25986.0,25985.0,0.05513658]
[1693813492257,0.55010023,25986.0,25985.0,0.14739576]
[1693813501024,0.55010023,25986.0,25985.0,0.05513658]
[1693813501234,0.55010023,25986.0,25985.0,0.14739576]
[1693813502359,0.55010023,25986.0,25985.0,0.05513658]
[1693813503158,0.55010023,25986.0,25985.0,0.14739576]
[1693813503531,0.55010023,25986.0,25985.0,0.05513658]
[1693813503939,0.55010023,25986.0,25985.0,0.14739576]
[1693813507565,0.55010023,25986.0,25985.0,0.05513658]
[1693813508652,0.55010023,25986.0,25985.0,0.14739576]
[1693813517200,0.55010023,25986.0,25985.0,0.05513658]
[1693813519773,0.55010023,25986.0,25985.0,0.14739576]
[1693813529215,0.55010023,25986.0,25985.0,0.14354555]
[1693813531382,0.55010023,25986.0,25985.0,0.13273894]
[1693813532953,0.55010023,25986.0,25985.0,0.11633176]
[1693813533742,0.55010023,25986.0,25985.0,0.10040897]
[1693813540331,0.64133478,25986.0,25985.0,0.00814979]
[1693813540685,0.91461478,25986.0,25985.0,0.00814979]
[1693813541312,0.91161478,25986.0,25982.0,0.23064795]
[1693813541508,0.0828,25983.0,25982.0,0.23064795]
[1693813541717,0.0828,25984.0,25982.0,0.07281325]
[1693813542393,0.0828,25984.0,25982.0,0.07381325]
[1693813542730,0.2477,25984.0,25982.0,0.07381325]
[1693813543500,0.2477,25984.0,25982.0,0.07281325]
[1693813543501,0.46318783,25984.0,25982.0,0.07281325]
[1693813543693,0.46518783,25984.0,25982.0,0.07981325]
[1693813544660,0.46718783,25984.0,25982.0,0.08081325]
[1693813548980,0.21749651,25983.0,25982.0,0.08081325]
[1693813550098,0.21749651,25983.0,25982.0,0.07381325]
[1693813550313,0.21949651,25983.0,25982.0,0.08081325]
[1693813551174,0.21949651,25983.0,25982.0,0.07981325]
[1693813551466,0.22149651,25983.0,25982.0,0.08081325]
[1693813553050,0.30429651,25983.0,25982.0,0.08081325]
[1693813553249,0.30429651,25983.0,25982.0,0.07696525]
[1693813554440,0.30429651,25983.0,25982.0,0.008]
[1693813561789,0.28371118,25983.0,25982.0,0.008]
[1693813581470,0.28371118,25983.0,25982.0,0.10025607]
[1693813624797,0.28371118,25983.0,25982.0,0.008]
[1693813630273,0.28371118,25983.0,25982.0,0.10025607]
[1693813645834,0.28371118,25983.0,25982.0,0.008]
[1693813647578,0.28371118,25983.0,25982.0,0.10033133]
[1693813654951,0.28371118,25983.0,25982.0,0.008]
[1693813655182,0.28371118,25983.0,25982.0,0.10033133]
[1693813662281,0.28371118,25983.0,25982.0,0.008]
[1693813662921,0.28371118,25983.0,25982.0,0.10033133]
[1693813663126,0.28371118,25983.0,25982.0,0.008]
[1693813663523,0.28371118,25983.0,25982.0,0.10033133]
[1693813663989,0.28371118,25983.0,25982.0,0.008]
[1693813665846,0.28371118,25983.0,25982.0,0.10033133]
[1693813669917,0.28371118,25983.0,25982.0,0.008]
[1693813670225,0.28371118,25983.0,25982.0,0.10033133]
[1693813671084,0.28371118,25983.0,25982.0,0.008]
[1693813681982,0.28171118,25983.0,25982.0,0.007]
[1693813682184,0.27971118,25983.0,25981.0,0.23082833]
[1693813682373,0.19891118,25983.0,25982.0,0.001]
[1693813682572,0.28371118,25983.0,25982.0,0.007]
[1693813682774,0.28171118,25983.0,25982.0,0.006]
[1693813683192,0.28271118,25983.0,25982.0,0.007]
[1693813694203,0.28271118,25983.0,25982.0,0.02276718]
[1693813694756,0.47288678,25983.0,25982.0,0.02276718]
[1693813695164,0.72528798,25983.0,25982.0,0.02276718]
[1693813695367,0.95629098,25983.0,25982.0,0.02276718]
[1693813695591,0.77142788,25983.0,25982.0,0.007]
[1693813695796,0.76842788,25983.0,25980.0,0.00098639]
[1693813695995,0.0828,25981.0,25976.0,1.08013133]
[1693813696194,0.0828,25977.0,25976.0,1.08112245]
[1693813696442,0.29845293,25977.0,25976.0,1.08112245]
[1693813696641,0.29845293,25977.0,25976.0,0.09233133]
[1693813696977,0.29703693,25977.0,25976.0,0.09233133]
[1693813697482,0.29703693,25977.0,25975.0,0.25072532]
[1693813697687,0.0828,25976.0,25975.0,0.25072532]
[1693813697892,0.0828,25976.0,25975.0,0.11222832]
[1693813698717,0.0828,25976.0,25975.0,0.11322832]
[1693813698925,0.0848,25976.0,25975.0,0.11822832]
[1693813699121,0.24,25976.0,25975.0,0.11722832]
[1693813700317,0.242,25976.0,25975.0,0.11822832]
[1693813700539,0.242,25976.0,25975.0,0.02589699]
[1693813704841,0.46288914,25976.0,25975.0,0.02589699]
[1693813705677,0.71188678,25976.0,25975.0,0.02589699]
[1693813705899,0.95187279,25976.0,25975.0,0.02589699]
[1693813706312,0.93641179,25976.0,25975.0,0.02589699]
[1693813706720,0.93441179,25976.0,25975.0,0.02089699]
[1693813706926,0.93241179,25976.0,25975.0,0.01989699]
[1693813707102,0.93028879,25976.0,25975.0,0.01989699]
[1693813707259,0.93086479,25976.0,25975.0,0.02089699]
[1693813707666,0.92986479,25976.0,25975.0,0.01989699]
[1693813708073,0.93278079,25976.0,25975.0,0.02489699]
[1693813708276,0.93078079,25976.0,25975.0,0.02089699]
[1693813708744,0.93178079,25976.0,25975.0,0.02489699]
[1693813708943,0.93178079,25976.0,25975.0,0.04803153]
[1693813713146,0.93178079,25976.0,25975.0,0.04057946]
[1693813724935,0.93171779,25976.0,25975.0,0.04057946]
[1693813739736,0.93171779,25976.0,25975.0,0.03480642]
[1693813743014,0.86707279,25976.0,25975.0,0.03480642]
[1693813751507,0.86988678,25976.0,25975.0,0.03480642]
[1693813751719,0.96216687,25976.0,25975.0,0.03480642]
[1693813752131,0.96116687,25976.0,25975.0,0.03380642]
[1693813752860,0.96016687,25976.0,25975.0,0.02980642]
[1693813753251,0.98216687,25976.0,25975.0,0.01412395]
[1693813753487,0.99916687,25976.0,25975.0,0.01412395]
[1693813753682,1.11490692,25976.0,25975.0,0.01412395]
[1693813753884,1.59236711,25976.0,25975.0,0.01412395]
[1693813754342,1.63636511,25976.0,25975.0,0.01412395]
[1693813754556,1.63384511,25976.0,25975.0,0.01412395]
[1693813754731,1.53286511,25976.0,25975.0,0.01412395]
[1693813754946,1.37230492,25976.0,25975.0,0.01412395]
[1693813755348,1.43836492,25976.0,25975.0,0.01412395]
[1693813755511,1.44712492,25976.0,25975.0,0.01412395]
[1693813755714,1.44664492,25976.0,25975.0,0.01412395]
[1693813755912,1.44598492,25976.0,25975.0,0.01412395]
[1693813756113,1.44352492,25976.0,25975.0,0.01412395]
[1693813756317,1.42134492,25976.0,25975.0,0.01412395]
[1693813756523,1.42050492,25976.0,25975.0,0.01412395]
[1693813756732,1.44564492,25976.0,25975.0,0.01412395]
[1693813756933,1.53648143,25976.0,25975.0,0.01412395]
[1693813757135,1.53144143,25976.0,25975.0,0.01412395]
[1693813757344,1.46664143,25976.0,25975.0,0.01412395]
[1693813757954,1.46670586,25976.0,25975.0,0.01412395]
[1693813758406,1.73812541,25976.0,25975.0,0.01412395]